Workbook

Sheet FALL '09
B2: FALL
B4: Income | C4: Bryce | D4: CS | E4: 9.25 | F4: 20 | G4: =E4*F4 -> 185 | H4: 2.7 | I4: =G4*H4 -> 499.5
C7: Heather | D7: BYU | G7: 55.5 | H7: 1 | I7: =G7*H7 -> 55.5
D8: Marlo | H8: 0 | I8: =G8*H8 -> 0
D9: Riverton | H9: 0 | I9: 0
D10: Random | I10: 0
C11: Less: | D11: Tithing | I11: =-0.1*(SUM(I4:I10)) -> -55.5
C12: Total | I12: =SUM(I4:I11) -> 499.5
B15: Expenses | C15: Food
C16: Utilities | I16: =-25*2 -> -50
C17: Car Payments | I17: =-113*1 -> -113
C18: Insurance | I18: 0
C19: Gas | I19: =3*-10 -> -30
C20: Dates | I20: =3*-10 -> -30
I21: -50
I22: =-8*1 -> -8
C23: Dentist | I23: -75
C24: Marriage License | I24: -50
C25: Rental Deposit | I25: 0
C26: Fee/Parking | I26: =-39-65 -> -104
C27: First Month's Rent and December Rent | I27: =-629-223 -> -852
C28: Furniture | E28: Bed
E29: Table
E30: Dresser
E31: Couch
E32: Night Stand
E33: Game Table
C36: Honeymoon | E36: Flight | I36: 0
E37: Car | F37: 5 Days | I37: -183
E38: 1st Night Hotel | I38: 0
E39: Hotels | I39: 0
E40: Food | I40: -160
E41: Stuff | I41: =-100-23 -> -123
E42: Total | J42: =SUM(I36:I41) -> -466
C48: Total | I48: =SUM(I15:I47) -> -1828
C53: Remaining Difference | G53: Current Balance | H53: Heather | I53: 415
H54: Bryce | I54: 261.33
H55: Book $ | I55: 316
H56: Total | I56: =SUM(I53:I55) -> 992.33
G57: Income Less Expenses | I57: =I12+I48 -> -1328.5
G58: Bank-Difference | I58: =I56+I57 -> -336.17

Sheet Winter '10
B2: WINTER
B4: Income | C4: Bryce | D4: MTC | E4: 11.73 | F4: 18 | G4: =E4*F4 -> 211.14 | H4: 4 | I4: =G4*H4 -> 844.56 | J4: =I4+111*2 -> 1066.56
C6: Possible Tax Return | I6: =1580/3 -> 526.6666667 | J6: =500 -> 500
C7: Heather | D7: BYU | G7: 111 | H7: 2 | I7: =G7*H7 -> 222
D8: Other | E8: 0 | F8: 14 | G8: =E8*F8 -> 0 | H8: 4 | I8: =G8*H8 -> 0
C11: Less: | D11: Tithing | I11: =-0.1*(SUM(I4:I9)) -> -159.3226667
C12: Total | I12: =SUM(I4:I11) -> 1433.904
I13: =I12*3 -> 4301.712 | J13: 3 mo
B15: Expenses | C15: Food | I15: =12*-80 -> -960
C16: Utilities | I16: =-90*3 -> -270
C17: Car Payments | I17: =-113*2 -> -226
C18: Insurance | I18: 0
C19: Gas | I19: =12*-13 -> -156
C20: Dates | I20: =12*-10 -> -120
I21: =2*-35 -> -70
I22: 0
C23: Hygiene | I23: =3*-30 -> -90
C26: Health Insurance | I26: 0
C27: Rent | I27: =-629*2 -> -1258
C28: Furniture | E28: Bed
E29: Table
E30: Dresser
E31: Couch
E32: Night Stand
E33: Game Table | M33: SW flight 284
C36: Anniversay (months) | E36: Flight | I36: 0
E37: Car | I37: 0
E39: Hotels | F39: 2 Nights | I39: 0
E40: Food | I40: 0
E41: Stuff | I41: 0
E42: Total | J42: =SUM(I36:I41) -> 0
C48: Total | I48: =SUM(I15:I47) -> -3150
M50: 2000
M51: =355+621 -> 976
H52: Wedding | I52: 0
C53: Remaining Difference | H53: Heather | I53: ='Current Balance'!B11 -> 350
H54: Bryce | I54: ='Current Balance'!E6 -> 0
H55: Total | I55: =SUM(I52:I54) -> 350
G56: Income Less Expenses | I56: =I13+I48 -> 1151.712
G57: Bank-Difference | I57: =I55+I56 -> 1501.712

Sheet Summer '10
A1: Summer
B4: Income | H4: Rent
C6: Walmart | D6: 2000 | E6: 5836.8 | F6: 7836.8 | G6: 7053.8 | H6: 700
C8: MTC 30hr/w | E8: 4590 | G8: 4131
C9: H 40hr $7 | E9: 3570 | G9: 3213
C10: B 10 $7 | E10: 892.5 | G10: 892.5

Sheet Current Balance
B4: Wells Fargo
B5: Checking | C5: Saving | D5: Visa | E5: Total
B10: USBank
B11: 350 | E11: Total
E12: =SUM(E6,B11) -> 350

Sheet Transactions (90 days)
C1: Wells Fargo Checking Account
B3: Date | C3: Description | D3: Deposits | E3: Withdrawals
